bitfinex/quotes_ETHUSD_20241003
["timestamp","ask_amount","ask_price","bid_price","bid_amount"]
[1727937623944,3.3435,2392.7,2392.2,3.759163]
[1727937624140,3.34344,2392.8,2392.3,3.34404]
[1727937626416,6.68688,2392.8,2392.3,3.34404]
[1727937626972,3.34344,2392.8,2392.3,3.34404]
[1727937627316,3.34344,2392.8,2392.3,4.1349173]
[1727937629373,6.68692,2392.8,2392.3,4.1349173]
[1727937629578,3.34344,2392.8,2392.3,4.1349173]
[1727937631723,6.68687,2392.8,2392.3,4.1349173]
[1727937633243,3.34343,2392.8,2392.3,4.1349173]
[1727937633444,3.34343,2392.8,2392.3,0.7908773]
[1727937633609,3.34352,2392.7,2392.1,7.49402]
[1727937634007,3.34352,2392.7,2392.2,3.34415]
[1727937634618,3.34352,2392.7,2392.2,3.34419]
[1727937634818,3.34371,2392.6,2392.1,4.14976]
[1727937635147,3.34371,2392.6,2392.1,7.49401]
[1727937635315,3.34371,2392.6,2392.1,7.908986]
[1727937635509,4.63838992,2392.6,2392.1,4.564726]
[1727937636023,1.29467992,2392.4,2392.1,4.14975]
[1727937636232,1.29467992,2392.2,2391.7,3.3448]
[1727937636398,1.29467992,2392.2,2391.8,0.7589]
[1727937636598,1.29467992,2392.2,2391.9,3.34461]
[1727937637546,3.34393,2392.4,2391.9,3.3445]
[1727937638042,3.34393,2392.4,2392.0,3.34446]
[1727937638444,3.34393,2392.4,2391.9,3.3445]
[1727937639313,3.34406,2392.3,2391.9,3.3445]
[1727937639526,3.34406,2392.3,2391.8,4.10365]
[1727937639698,3.34393,2392.4,2391.8,4.10365]
[1727937639901,6.68792,2392.4,2391.8,4.10365]
[1727937640211,3.34393,2392.4,2391.9,3.3446]
[1727937641452,3.34393,2392.4,2391.9,3.34453]
[1727937642525,6.68793,2392.4,2391.9,3.34453]
[1727937642850,3.34393,2392.4,2391.9,3.34453]
[1727937644458,3.34408,2392.3,2391.8,4.10366]
[1727937644667,3.34393,2392.4,2391.8,4.10366]
[1727937644874,3.34407,2392.3,2391.8,4.10366]
[1727937645773,3.34393,2392.4,2391.9,3.3446]
[1727937645934,3.34393,2392.4,2391.9,6.6892]
[1727937646136,3.34393,2392.4,2391.9,6.68914]
[1727937646345,3.34393,2392.4,2391.9,3.34454]
[1727937647254,6.68793,2392.4,2391.9,3.34454]
[1727937647437,3.34393,2392.4,2391.9,3.34454]
[1727937648072,6.68793,2392.4,2391.9,3.34454]
[1727937648248,3.34393,2392.4,2391.9,3.34454]
[1727937649000,6.68792,2392.4,2391.9,3.34454]
[1727937650155,2.80559038,2392.5,2392.0,3.34444]
[1727937650366,3.0,2392.7,2392.1,0.792]
[1727937650674,10.3166732,2392.8,2392.3,6.68796]
[1727937650831,6.9732432,2392.8,2392.4,4.804626]
[1727937651031,6.9732432,2392.8,2392.4,4.13583]
[1727937651230,6.9732432,2392.8,2392.4,0.792]
[1727937651764,10.3166032,2392.8,2392.4,0.792]
[1727937652864,3.34336,2392.8,2392.4,0.792]
[1727937658161,2.80559038,2392.9,2392.4,0.792]
[1727937658526,2.80559038,2393.1,2392.8,0.8248]
[1727937658815,2.80559038,2392.9,2392.8,0.8248]
[1727937659036,6.14858038,2393.1,2392.8,0.8248]
[1727937659184,2.80559038,2393.1,2392.8,0.8248]
[1727937659572,1.2942596,2393.0,2392.8,0.8248]
[1727937662013,1.2942596,2393.2,2392.9,3.34322]
[1727937662966,1.2942596,2393.2,2392.8,4.16816]
[1727937663182,1.2942596,2393.2,2392.8,7.51141]
[1727937663785,1.2942596,2393.2,2392.8,4.16805]
[1727937663988,1.2942596,2393.2,2392.8,7.51134]
[1727937664411,1.2942596,2393.2,2392.8,4.16805]
[1727937666675,4.6370696,2393.2,2392.8,4.16805]
[1727937667290,1.2942596,2393.2,2392.8,7.51133]
[1727937667618,1.2942596,2393.4,2393.0,4.09898]
[1727937667816,1.2942596,2393.4,2393.0,7.44198]
[1727937668015,1.2942596,2393.4,2393.0,4.09898]
[1727937668880,4.6367896,2393.4,2393.0,0.756]
[1727937671643,4.6367896,2393.4,2392.8,4.094393]
[1727937671644,4.6371596,2393.2,2392.8,0.7929]
[1727937671951,4.6371596,2393.2,2392.3,4.13695]
[1727937671952,3.34338,2392.8,2392.3,4.13695]
[1727937672107,4.6377896,2392.7,2392.3,0.7929]
[1727937673257,1.2942596,2392.7,2392.3,0.7929]
[1727937673551,3.34338,2392.8,2392.3,0.7929]
[1727937674162,2.80473014,2392.7,2392.3,0.7929]
[1727937674365,6.14823014,2392.7,2392.3,0.7929]
[1727937675791,2.80473014,2392.7,2392.3,0.7929]
[1727937676091,2.80473014,2392.7,2392.3,4.13693]
[1727937680296,2.80473014,2392.7,2392.3,4.885049]
[1727937684910,2.80507574,2392.7,2392.3,4.885049]
[1727937685412,2.80507574,2392.5,2392.3,0.7929]
[1727937685623,2.80507574,2392.5,2392.1,4.14446]
[1727937685789,5.09591983,2392.8,2392.1,0.8002]
[1727937685790,2.80507574,2392.3,2392.1,0.8002]
[1727937685986,2.80507574,2392.3,2391.9,4.12772]
[1727937685987,6.14915574,2392.3,2391.9,4.12772]
[1727937686692,2.80507574,2392.3,2391.9,4.12772]
[1727937687071,6.14913574,2392.3,2391.9,0.7832]
[1727937687481,6.14947574,2392.1,2391.9,0.7832]
[1727937687682,3.34449,2392.0,2391.4,0.8309]
[1727937688029,2.80507574,2391.8,2391.4,4.1761]
[1727937688884,6.14956574,2392.0,2391.5,6.69015]
[1727937689091,6.14956574,2392.0,2391.5,4.15998281]
[1727937689287,2.80507574,2392.0,2391.6,3.34503]
[1727937690315,2.80507574,2392.0,2391.7,0.7792]
[1727937691134,2.80507574,2392.2,2391.8,3.34473]
[1727937691422,6.14909574,2392.4,2391.9,4.11938]
[1727937691918,14.87444877,2392.6,2392.1,0.7748]
[1727937692131,6.9732432,2392.6,2392.1,4.11913]
[1727937692425,6.14852574,2392.8,2392.3,4.12624]
[1727937692574,6.14852574,2392.8,2392.3,7.47022]
[1727937692983,6.14852574,2392.8,2392.3,4.12618]
[1727937693183,6.14852574,2392.8,2392.3,4.873222]
[1727937693627,2.80507574,2392.6,2392.3,1.529242]
[1727937697717,2.80507574,2392.6,2392.3,0.7822]
[1727937702818,2.80531906,2392.6,2392.3,0.7822]
[1727937703519,1.29476307,2392.5,2392.3,0.7822]
[1727937705126,1.29476307,2392.5,2392.3,4.1262]
[1727937705329,3.34434,2392.1,2391.7,0.61500857]
[1727937705529,1.29476307,2391.9,2391.8,0.829]
[1727937707783,6.15060164,2392.2,2391.8,0.829]
[1727937708589,3.34435,2392.1,2391.8,0.829]
[1727937709695,3.34413,2392.3,2391.9,0.831]
[1727937710001,6.68775,2392.5,2391.9,4.17555]
[1727937710200,6.68775,2392.5,2392.0,0.831]
[1727937710696,3.34387,2392.5,2392.0,4.17546]
[1727937710852,3.34365,2392.6,2392.1,4.10973]
[1727937711048,3.34365,2392.6,2392.2,0.7654]
[1727937711294,3.34367,2392.6,2392.2,0.7654]
[1727937714054,6.15003164,2392.6,2392.2,0.7654]
[1727937715097,3.3436,2392.7,2392.2,3.755099]
[1727937715400,3.3436,2392.7,2392.3,0.8088]
[1727937715602,6.68722,2392.7,2392.3,0.8088]
[1727937715761,3.34366,2392.6,2392.3,0.8088]
[1727937719869,6.15002164,2392.6,2392.3,0.8088]
[1727937722347,6.15002164,2392.6,2392.3,1.2652109]
[1727937724631,5.09598983,2392.7,2392.3,1.2652109]
[1727937724973,5.09587983,2392.8,2392.4,0.7529]
[1727937725267,6.14999164,2392.7,2392.5,0.45532309]
[1727937725468,6.14999164,2392.7,2392.4,0.7529]
[1727937725631,3.34364,2392.6,2392.4,0.7529]
[1727937726683,6.68735,2392.6,2392.4,0.7529]
[1727937728171,3.34364,2392.6,2392.4,0.7529]
[1727937730131,1.75245983,2392.7,2392.4,0.7529]
[1727937730331,3.34345,2392.8,2392.4,0.7529]
[1727937730332,5.09590983,2392.8,2392.4,0.7529]
[1727937730680,1.75245983,2392.9,2392.5,3.753375]
[1727937730891,1.75245983,2393.0,2392.7,0.7946]
[1727937731444,5.09553983,2393.0,2392.7,0.7946]
[1727937731780,6.14959164,2392.9,2392.7,0.7946]
[1727937732081,3.34336,2392.8,2392.4,0.7618]
[1727937732290,2.80636164,2392.7,2392.4,0.7618]
[1727937732643,3.34336,2392.8,2392.4,0.7618]
[1727937732839,6.68681,2392.8,2392.4,0.7618]
[1727937733349,3.34336,2392.8,2392.4,0.7618]
[1727937733944,6.68682,2392.8,2392.4,0.7618]
[1727937735372,3.34336,2392.8,2392.4,0.7618]
[1727937736980,6.68679,2392.8,2392.4,0.7618]
[1727937737181,5.09581983,2392.8,2392.4,0.7618]
[1727937739307,8.43926983,2392.8,2392.4,0.7618]
[1727937739479,5.09581983,2392.8,2392.4,0.7618]
[1727937741265,2.80636164,2392.7,2392.4,0.7618]
[1727937745570,1.29459119,2392.7,2392.4,0.7618]
[1727937746305,4.63821119,2392.7,2392.4,0.7618]
[1727937746472,1.29459119,2392.5,2392.2,0.7635]
[1727937746668,1.29459119,2392.3,2391.8,0.7635]
[1727937746873,1.29459119,2392.0,2391.8,4.10812]
[1727937747109,1.29459119,2392.0,2391.8,7.4528]
[1727937747680,1.29459119,2392.0,2391.8,4.10812]
[1727937747883,1.29459119,2392.0,2391.9,3.34462]
[1727937748305,1.29459119,2392.2,2391.9,3.34462]
[1727937749574,2.80609433,2392.3,2391.9,3.34462]
[1727937752816,4.55855416,2392.3,2391.9,3.34462]
[1727937755399,4.55855416,2392.3,2391.8,0.7635]
[1727937755729,6.15043433,2392.1,2391.8,0.7635]
[1727937756733,2.80609433,2392.1,2391.8,0.7635]
[1727937763550,6.15046433,2392.1,2391.6,4.09864]
[1727937764597,6.15046433,2392.1,2391.6,7.44361]
[1727937766307,2.80609433,2392.1,2391.6,7.44361]
[1727937766510,2.80609433,2392.1,2391.7,3.3448]
[1727937769279,6.15050433,2392.1,2391.6,7.4436]
[1727937769439,2.80609433,2392.1,2391.6,7.4436]
[1727937770134,6.15043433,2392.1,2391.6,4.09864]
[1727937770335,6.15052433,2392.1,2391.6,4.843026]
[1727937770636,6.15052433,2392.1,2391.6,7.44361]
[1727937771034,6.15052433,2392.1,2391.6,4.09864]
[1727937771374,6.15052433,2392.1,2391.6,7.44361]
[1727937771674,1.29529495,2392.0,2391.6,4.09864]
[1727937771840,1.29529495,2392.0,2391.6,4.843026]
[1727937772869,4.63979495,2392.0,2391.6,4.843026]
[1727937773081,1.29529495,2392.0,2391.6,4.843026]
[1727937774236,3.34415,2392.3,2391.8,3.34465]
[1727937774461,3.34415,2392.3,2392.0,0.7856]
[1727937775563,4.29529495,2392.4,2392.0,0.7856]
[1727937775931,6.34337,2392.8,2392.2,0.823]
[1727937775932,3.04775478,2392.7,2392.2,0.823]
[1727937776064,1.75245983,2392.7,2392.3,3.34402]
[1727937776266,1.75245983,2392.8,2392.2,3.34406]
[1727937776472,6.39107478,2392.9,2392.5,0.7767]
[1727937776705,4.63861495,2392.9,2392.5,0.7767]
[1727937776887,4.6273002,2392.9,2392.5,0.7767]
[1727937777102,4.6273002,2392.9,2392.5,1.2222006]
[1727937778630,7.9706002,2392.9,2392.5,1.2222006]
[1727937780582,4.6273002,2392.9,2392.5,1.2222006]
[1727937780779,1.29529495,2392.9,2392.5,4.5659606]
[1727937781000,1.29529495,2392.9,2392.6,0.79098606]
[1727937781314,4.63859495,2392.9,2392.6,0.79098606]
[1727937781500,1.29529495,2392.9,2392.6,0.79098606]
[1727937782371,4.63855495,2392.9,2392.6,0.79098606]
[1727937782965,3.34337,2392.8,2392.6,0.79098606]
[1727937783169,1.29529495,2392.7,2392.3,0.7526]
[1727937783420,1.29529495,2392.5,2392.3,0.7526]
[1727937785693,6.14893123,2392.6,2392.3,0.7526]
[1727937786874,2.80527123,2392.6,2392.3,0.7526]
[1727937787291,2.80527123,2392.6,2392.3,1.496709]
[1727937789000,7.90119106,2392.8,2392.3,1.496709]
[1727937789197,1.75245983,2392.9,2392.5,3.34366]
[1727937789403,8.33937475,2393.0,2392.5,6.68736]
[1727937789404,7.90092106,2393.0,2392.5,6.68736]
[1727937789597,1.75245983,2392.9,2392.6,0.8131]
[1727937790229,7.90092106,2393.0,2392.6,0.8131]
[1727937791996,1.75245983,2392.9,2392.6,0.8131]
[1727937792428,1.75245983,2392.9,2391.8,2.80527123]
[1727937792429,3.34357,2392.7,2392.1,3.34422]
[1727937792630,3.34357,2392.7,2392.3,0.8138]
[1727937794294,6.14875123,2392.8,2392.3,0.8138]
[1727937794692,11.24466106,2392.8,2392.3,0.8138]
[1727937794842,6.14872123,2392.8,2392.3,4.15779]
[1727937795141,6.14872123,2392.8,2392.3,7.92538255]
[1727937795346,6.14872123,2392.8,2392.3,4.58139255]
[1727937795796,9.49218123,2392.8,2392.3,4.58139255]
[1727937795993,3.34345,2392.8,2392.3,4.58139255]
[1727937796200,6.68686,2392.8,2392.3,4.58139255]
[1727937797019,3.3435,2392.7,2392.3,1.23743255]
[1727937797219,3.3435,2392.7,2392.3,0.8138]
[1727937797708,6.14870123,2392.8,2392.3,0.8138]
[1727937797912,6.14870123,2392.8,2392.4,0.03265946]
[1727937798254,1.75245983,2392.9,2392.5,0.7854]
[1727937798428,5.09575983,2392.9,2392.5,0.7854]
[1727937800020,3.3433,2392.9,2392.5,0.7854]
[1727937802561,5.09575983,2392.9,2392.5,0.7854]
[1727937803809,2.80527123,2392.8,2392.5,0.7854]
[1727937804043,6.6872,2392.7,2392.5,0.7854]
[1727937804349,3.34364,2392.6,2392.3,0.8029]
[1727937805355,6.14874123,2392.8,2392.3,0.8029]
[1727937805509,1.29460762,2392.7,2392.3,0.8029]
[1727937806729,1.75245983,2392.8,2392.4,3.41819819]
[1727937806929,3.34304,2393.1,2392.6,3.34363]
[1727937806930,1.75245983,2393.0,2392.6,3.34363]
[1727937807131,5.09549983,2393.1,2392.8,0.7561]
[1727937808339,4.75245983,2393.1,2392.8,0.7561]
[1727937808867,8.09541983,2393.1,2392.8,0.7561]
[1727937809074,11.43847983,2393.1,2392.8,0.7561]
[1727937809775,3.34311,2393.0,2392.8,0.7561]
[1727937813487,5.09556983,2393.0,2392.8,0.7561]
[1727937814071,1.75245983,2393.1,2392.8,0.7561]
[1727937814298,3.34295,2393.1,2392.9,0.78]
[1727937814496,1.75245983,2393.2,2392.9,0.78]
[1727937814721,1.75245983,2393.3,2393.1,0.78]
[1727937814912,1.75245983,2393.5,2393.3,4.12266]
[1727937815201,1.75245983,2393.6,2393.5,0.78]
[1727937815382,1.75245983,2393.8,2393.5,0.78]
[1727937815590,1.75245983,2393.9,2393.6,0.03802528]
[1727937815903,1.75245983,2394.0,2393.7,0.7612]
[1727937816192,5.53314444,2394.1,2393.7,0.7612]
[1727937816193,5.09409983,2394.1,2393.7,0.7612]
[1727937816399,3.34164,2394.1,2393.7,0.7612]
[1727937816579,1.75245983,2394.2,2393.8,0.07463023]
[1727937817102,3.34141,2394.2,2393.9,0.8189]
[1727937818152,5.09379983,2394.3,2393.9,0.8189]
[1727937818359,6.68269,2394.3,2393.9,0.8189]
[1727937818651,3.34134,2394.3,2393.9,0.8189]
[1727937818969,6.68269,2394.3,2393.9,0.8189]
[1727937819165,3.34134,2394.3,2393.9,0.8189]
[1727937819901,1.75245983,2394.6,2394.2,0.8301]
[1727937820103,5.09322983,2394.7,2394.2,0.90476569]
[1727937820256,8.43350983,2394.9,2394.3,3.34126]
[1727937820581,3.34051,2394.9,2394.5,0.813]
[1727937821001,3.34064,2394.8,2394.5,0.813]
[1727937821485,3.34051,2394.9,2394.5,0.813]
[1727937821797,6.68102,2394.9,2394.5,0.813]
[1727937821997,3.34051,2394.9,2394.5,0.813]
[1727937822201,6.68102,2394.9,2394.5,0.813]
[1727937822398,3.34064,2394.8,2394.5,0.813]
[1727937822705,2.80393239,2395.0,2394.5,4.569394]
[1727937822706,3.34038,2395.0,2394.5,4.569394]
[1727937822858,3.34038,2395.0,2394.6,0.8318]
[1727937824671,6.14395239,2395.2,2394.7,3.38635021]
[1727937824918,3.33997,2395.3,2394.8,0.814]
[1727937825247,6.67996,2395.3,2394.8,0.814]
[1727937825608,3.34004,2395.2,2394.8,0.814]
[1727937826350,3.34004,2395.2,2394.8,0.88870301]
[1727937826711,3.34004,2395.2,2394.8,0.814]
[1727937827945,6.14397239,2395.2,2394.8,0.814]
[1727937828720,3.34015,2395.1,2394.8,0.814]
[1727937834185,3.33995,2395.3,2394.9,0.749515]
[1727937834906,6.67989,2395.3,2394.9,0.749515]
[1727937835065,3.33994,2395.3,2394.9,0.749515]
[1727937835270,9.48382239,2395.3,2394.9,0.749515]
[1727937835470,6.14387239,2395.3,2394.9,0.749515]
[1727937835731,9.48384239,2395.3,2394.9,0.749515]
[1727937836325,6.14387239,2395.3,2394.9,0.749515]
[1727937836990,9.48383239,2395.3,2394.9,0.749515]
[1727937837816,6.14387239,2395.3,2394.9,0.749515]
[1727937838135,9.48386239,2395.3,2394.9,0.749515]
[1727937838831,9.48384239,2395.3,2394.9,0.749515]
[1727937839367,6.14387239,2395.3,2394.9,0.749515]
[1727937839786,9.48385239,2395.3,2394.9,0.749515]
[1727937840183,3.34002,2395.2,2394.9,0.749515]
[1727937840424,3.34002,2395.2,2394.8,0.814]
[1727937840615,9.48384239,2395.3,2394.8,0.89277818]
[1727937841393,9.48384239,2395.3,2394.8,0.814]
[1727937844340,6.14387239,2395.3,2394.8,0.814]
[1727937844513,9.48384239,2395.3,2394.8,0.814]
[1727937845049,9.48384239,2395.3,2394.8,0.89277818]
[1727937845219,9.48384239,2395.3,2394.8,0.814]
[1727937847763,7.97173143,2395.3,2394.8,0.814]
[1727937848798,4.63176143,2395.3,2394.8,0.814]
[1727937849143,4.63176143,2395.3,2394.8,4.23335796]
[1727937849327,4.63176143,2395.3,2394.8,4.98288196]
[1727937849706,4.63176143,2395.3,2394.8,4.904084]
[1727937850024,4.63176143,2395.3,2394.8,4.98288196]
[1727937851266,7.97175143,2395.3,2394.8,4.904084]
[1727937851603,4.63176143,2395.3,2394.8,4.904084]
[1727937851865,4.63176143,2395.3,2394.8,4.98290266]
[1727937852427,4.63176143,2395.3,2394.8,4.904084]
[1727937852852,1.29182143,2395.1,2394.8,0.89290676]
[1727937853056,1.29182143,2394.9,2394.5,0.7821]
[1727937853375,4.63219143,2395.0,2394.6,0.7821]
[1727937853666,6.33966,2395.5,2394.8,3.3405]
[1727937853667,3.33992,2395.3,2394.8,3.3405]
[1727937853868,4.63163143,2395.4,2394.9,0.8276]
[1727937854078,7.97149143,2395.4,2394.9,4.58484]
[1727937854382,3.3396,2395.5,2395.0,3.34021]
[1727937854575,4.63142143,2395.5,2395.1,0.8009]
[1727937854929,3.33974,2395.4,2395.1,0.8009]
[1727937856564,3.33987,2395.3,2395.1,0.8009]
[1727937857263,3.33974,2395.4,2395.1,1.22306896]
[1727937857741,3.33974,2395.4,2395.1,0.8009]
[1727937857941,6.67959,2395.4,2395.1,0.8009]
[1727937858681,3.33974,2395.4,2395.1,0.8009]
[1727937859267,6.67957,2395.4,2395.1,0.8009]
[1727937859792,3.33989,2395.3,2395.1,0.8009]
[1727937864687,5.09219983,2395.4,2395.1,0.8009]
[1727937864915,3.34001,2395.2,2395.1,0.8009]
[1727937867357,5.09246983,2395.2,2395.1,0.8009]
[1727937869052,2.18376297,2395.3,2395.1,0.8009]
[1727937869053,1.75245983,2395.3,2395.1,3.34003]
[1727937869250,1.75245983,2395.4,2395.2,1.461721]
[1727937871420,1.75245983,2395.4,2395.3,0.7883]
[1727937872143,3.33791,2396.8,2395.6,0.7883]
[1727937872144,1.75245983,2395.7,2395.6,0.7883]
[1727937872363,1.75245983,2395.7,2395.6,4.20823726]
[1727937872502,3.9362228,2396.1,2395.7,0.7773]
[1727937872707,1.75245983,2396.0,2395.8,0.50020427]
[1727937872929,1.75245983,2396.1,2395.8,0.50020427]
[1727937873346,5.09108983,2396.2,2395.8,0.50020427]
[1727937873555,1.75245983,2396.1,2395.8,0.50020427]
[1727937874568,6.38291126,2396.2,2395.8,0.50020427]
[1727937874787,6.38291126,2396.2,2395.7,0.7773]
[1727937875539,6.38291126,2396.2,2395.7,4.1166]
[1727937875724,1.29182143,2396.2,2395.8,0.8283]
[1727937876325,1.29182143,2396.2,2395.8,0.86015372]
[1727937876525,1.29182143,2396.2,2395.9,0.41994537]
[1727937876772,4.63044143,2396.2,2395.9,0.41994537]
[1727937877071,1.29182143,2396.2,2395.9,0.41994537]
[1727937877984,3.33853,2396.3,2395.9,0.41994537]
[1727937878361,1.75245983,2396.5,2396.2,3.33855]
[1727937878556,1.75245983,2396.7,2396.3,4.424225]
[1727937878729,1.75245983,2396.8,2396.4,3.33829]
[1727937878929,1.75245983,2396.9,2396.6,0.8179]
[1727937879470,6.38182126,2397.0,2396.6,0.8179]
[1727937879670,5.08999983,2397.0,2396.6,0.8179]
[1727937880335,3.33754,2397.0,2396.6,0.8179]
[1727937880946,5.08999983,2397.0,2396.6,0.8179]
[1727937881182,3.33754,2397.0,2396.6,0.8179]
[1727937885046,3.0,2397.0,2396.6,0.8179]
[1727937885251,3.0,2397.0,2396.6,1.2335]
[1727937886070,3.0,2397.0,2396.6,4.57148]
[1727937886593,9.13202033,2397.3,2396.7,3.33791]
[1727937886794,9.13202033,2397.3,2396.8,0.7517]
[1727937887580,6.9732432,2397.6,2397.1,0.8131]
[1727937887794,3.3366,2397.7,2397.2,3.33721]
[1727937888096,3.3366,2397.7,2397.3,0.8131]
[1727937888466,6.67325,2397.7,2397.3,0.8131]
[1727937888667,3.3366,2397.7,2397.3,0.8131]
[1727937889079,3.77322513,2397.9,2397.4,0.8134]
[1727937889282,3.77313513,2397.9,2397.5,0.415038]
[1727937889517,7.10945513,2397.9,2397.4,4.15026]
[1727937889683,3.77313513,2397.9,2397.4,4.15026]
[1727937890030,3.77313513,2397.9,2397.5,0.415026]
[1727937890771,0.43688513,2397.9,2397.5,0.415026]
[1727937890979,0.43688513,2397.9,2397.6,0.7676]
[1727937891672,0.43688513,2397.9,2397.6,4.10424]
[1727937891979,0.43688513,2397.9,2397.6,3.33664]
[1727937892312,3.4542548,2398.1,2397.7,1.1968666]
[1727937894213,0.1182048,2398.1,2397.8,0.8217]
[1727937895123,0.1182048,2398.1,2397.9,0.8217]
[1727937895414,0.1182048,2398.1,2398.0,0.415808]
[1727937895623,0.1182048,2398.1,2398.0,7.36847833]
[1727937895922,0.1182048,2398.1,2398.0,6.95267033]
[1727937896110,0.1182048,2398.1,2398.0,6.97505519]
[1727937896681,0.1182048,2398.1,2398.0,4.18019486]
[1727937896883,0.1182048,2398.1,2398.0,4.15781]
[1727937897088,0.1182048,2398.1,2398.0,4.94194175]
[1727937898144,0.1182048,2398.1,2398.0,4.907208]
[1727937900165,0.1182048,2398.1,2398.0,1.571098]
[1727937901168,0.1182048,2398.1,2398.0,0.8217]
[1727937902033,0.1182048,2398.1,2397.8,0.7941]
[1727937903672,0.1182048,2398.1,2397.8,4.13046]
[1727937903874,0.1182048,2398.1,2397.9,3.33624]
[1727937904177,0.1182048,2398.1,2398.0,0.413034]
[1727937904479,0.1182048,2398.1,2398.0,3.749144]
[1727937904642,0.1182048,2398.1,2398.0,0.413034]
[1727937905732,0.1182048,2398.1,2397.8,0.7941]
[1727937906670,0.1182048,2398.1,2397.7,1.1280666]
[1727937909153,3.4542548,2398.1,2397.7,1.1280666]
[1727937909353,2.79486033,2397.9,2397.5,1.238426]
[1727937909557,3.33639,2397.8,2397.5,0.415026]
[1727937909779,3.33639,2397.8,2397.3,4.11779]
[1727937910282,6.13141033,2397.7,2397.1,4.11807]
[1727937910509,6.13141033,2397.7,2397.2,0.411807]
[1727937910780,3.33668,2397.6,2397.2,0.411807]
[1727937910966,2.79486033,2397.7,2397.2,0.411807]
[1727937911170,6.13146033,2397.7,2397.2,0.411807]
[1727937912077,6.13146033,2397.7,2397.2,3.749017]
[1727937912271,2.79486033,2397.7,2397.3,0.7867087]
[1727937912671,6.13139033,2397.7,2397.3,0.7867087]
[1727937913663,2.79486033,2397.7,2397.3,0.7867087]
[1727937914007,6.13142033,2397.7,2397.3,0.7867087]
[1727937914209,2.79486033,2397.7,2397.3,4.1237587]
[1727937914388,3.33643,2397.8,2397.4,0.78727757]
[1727937914585,3.33643,2397.8,2397.2,3.749017]
[1727937914893,3.33655,2397.7,2397.2,3.749017]
[1727937915202,6.67289,2397.8,2397.2,3.748947]
[1727937915364,3.33643,2397.8,2397.2,3.748947]
[1727937915564,3.3366,2397.7,2397.2,0.411807]
[1727937915959,2.79486033,2397.9,2397.2,0.411807]
[1727937916168,2.79486033,2397.5,2397.1,0.7808]
[1727937916544,6.13167033,2397.5,2397.1,0.7808]
[1727937916675,3.33681,2397.5,2397.1,0.7808]
[1727937916875,6.13167033,2397.5,2397.1,0.7808]
[1727937918669,3.33667,2397.6,2397.1,4.11815]
[1727937918860,6.13148033,2397.7,2397.1,0.7808]
[1727937918861,3.33683,2397.5,2397.1,0.7808]
[1727937919955,6.67371,2397.5,2397.1,0.7808]
[1727937920211,3.33683,2397.5,2397.1,0.7808]
[1727937921065,6.67375,2397.5,2397.1,0.7808]
[1727937921567,6.67373,2397.5,2397.1,0.7808]
[1727937921913,3.33662,2397.7,2397.1,1.192623]
[1727937922122,3.33662,2397.7,2397.2,4.1136]
[1727937922299,3.33662,2397.7,2397.3,0.8294]
[1727937922632,3.33662,2397.7,2397.4,0.416655]
[1727937922759,6.67326,2397.7,2397.4,0.416655]
[1727937922964,3.33662,2397.7,2397.4,0.416655]
[1727937923382,6.67325,2397.7,2397.3,0.8294]
[1727937924105,3.33669,2397.6,2397.3,0.8294]
[1727937926309,3.33688,2397.5,2397.3,0.8294]
[1727937926540,3.33669,2397.6,2397.3,0.8294]
[1727937927026,6.67345,2397.6,2397.3,0.8294]
[1727937927230,6.67345,2397.6,2397.3,1.2872503]
[1727937927636,3.33669,2397.6,2397.3,0.8294]
[1727937927797,3.33681,2397.5,2397.3,0.8294]
[1727937929629,3.33694,2397.4,2397.3,0.8294]
[1727937930199,3.33694,2397.4,2397.1,1.201623]
[1727937930695,3.33709,2397.3,2397.1,0.7898]
[1727937930926,3.33749,2397.1,2396.6,0.7898]
[1727937931142,3.33771,2396.9,2396.6,0.7898]
[1727937931447,3.33771,2396.9,2396.6,1.202603]
[1727937931656,9.46980033,2397.1,2396.6,1.202603]
[1727937931802,3.33753,2397.0,2396.6,1.202603]
[1727937932147,3.33773,2396.9,2396.6,0.7898]
[1727937932701,3.33734,2397.2,2396.6,0.7898]
[1727937932925,3.33734,2397.2,2396.8,0.7898]
[1727937933148,3.33703,2397.4,2397.0,0.7898]
[1727937933501,3.33709,2397.3,2397.0,0.7898]
[1727937933846,3.33681,2397.5,2397.0,4.540006]
[1727937934148,3.33696,2397.4,2397.0,1.202536]
[1727937934349,6.67402,2397.4,2397.1,0.4540096]
[1727937935305,3.33709,2397.3,2397.1,0.4540096]
[1727937936618,3.33709,2397.3,2397.0,0.7898]
[1727937937131,3.33751,2397.0,2396.6,0.7728]
[1727937938122,6.67511,2397.0,2396.6,0.7728]
[1727937938323,3.33766,2396.9,2396.6,1.2118376]
[1727937938632,3.33751,2397.0,2396.6,1.2118376]
[1727937939241,3.33765,2396.9,2396.6,1.2118376]
[1727937939557,3.33765,2396.9,2396.6,0.7728]
[1727937940625,3.33736,2397.1,2396.6,3.33803]
[1727937940987,3.33736,2397.1,2396.7,0.80709344]
[1727937941255,6.67479,2397.1,2396.7,0.80709344]
[1727937941414,3.33736,2397.1,2396.8,0.41450734]
[1727937941619,6.67479,2397.1,2396.8,0.41450734]
[1727937941819,3.33736,2397.1,2396.8,0.41450734]
[1727937942015,3.33751,2397.0,2396.8,0.41450734]
[1727937942216,3.33736,2397.1,2396.7,0.8484372]
[1727937942448,3.33778,2396.8,2396.4,0.27948603]
[1727937942635,3.33793,2396.7,2396.5,0.7745]
[1727937942958,3.33778,2396.8,2396.5,0.7745]
[1727937943165,3.3376,2397.0,2396.5,0.7745]
[1727937943457,3.33779,2396.8,2396.5,1.22207029]
[1727937943623,3.33793,2396.7,2396.5,0.7745]
[1727937943834,3.33779,2396.8,2396.5,0.7745]
[1727937946744,3.33779,2396.8,2396.5,0.80522932]
[1727937947993,3.33779,2396.8,2396.5,0.7745]
[1727937948135,3.33792,2396.7,2396.5,0.7745]
[1727937948680,3.33779,2396.8,2396.5,0.7745]
[1727937948831,3.33779,2396.8,2396.5,1.2137416]